Cogmind - Beta 11.1 @@@ ROGUE MODE // 2022.05.16 @ 23:29:25 Player: darki Result: Destroyed by H-88 Terminator with Heavy Machine Gun Performance ------------- Evolutions (8) 4000 Regions Visited (18) 3600 Robots Destroyed (139) 695 Value Destroyed (3118) 3118 Prototype IDs (26) 520 Alien Tech Used (2) 400 Bonus (969) 969 TOTAL SCORE: 13302 Bonus ------- High Alert Combat Kills 551 Follower Combat Kills 84 Aligned with FarCom 300 Met Zhirov 300 Friendly Fire -266 Cogmind --------- Core Integrity 0/1450 Matter 233/300 Energy 99/100 System Corruption 2% Temperature Cool (0) Movement Core (50) Location -2/Research Parts ------- > --- POWER (3) -------- (None) > --- PROPULSION (8) --- (None) > --- UTILITY (10) ----- Improved Weapon Shielding Hacking Suite Hacking Suite > --- WEAPON (2) ------- (None) > --- INVENTORY (5) ---- Advanced Energy Well (500) Makeshift Trap Scanner Force Field Force Lance Force Lance Peak State ------------ > --- POWER ------------ Fission Core Antimatter Reactor > --- PROPULSION ------- Antigrav System Field Propulsion Drive Field Propulsion Drive Nuclear Pulse Array Field Propulsion Array > --- UTILITY ---------- Advanced Weight Redist. System Machine Analyzer Advanced Melee Analysis Suite Advanced Reaction Control System Advanced Shield Generator Hacking Suite Hacking Suite Hacking Suite > --- WEAPON ----------- Powered Hammer Powered Hammer > --- INVENTORY -------- Improved Coolant Injector Advanced ECM Suite Force Field System Shield Mining Laser [Rating: 98] Favorites ----------- Power Improved Ion Engine Engine Improved Ion Engine Power Core Light Nuclear Core Reactor Antimatter Reactor Propulsion Aluminum Leg Treads Light Treads Leg Aluminum Leg Wheel Wheel Hover Unit Antigrav System Flight Unit Cooled Nuclear Pulse Thruster Utility Launcher Guidance Computer Device Advanced Weight Redist. System Storage Medium Storage Unit Processor Launcher Guidance Computer Hackware Hacking Suite Protection Light Armor Plating Weapon Powered Hammer Energy Gun Particle Gun Ballistic Gun Improved Assault Rifle Ballistic Cannon Improved Light Cannon Launcher Mini Grenade Launcher Special Weapon Mining Laser Impact Weapon Powered Hammer Slashing Weapon Power Sword Piercing Weapon Force Lance Build | -11 -10 -10 -9 -9 -9 -8 -8 -8 -8 -6 -5 -4 -4 -4 -4 -3 -3 -2 ------- Run | Scr Mat Min Mat Min Exi Min Mat Sto Rec Fac Fac Fac Upp Upp Zhi Pro Res Res Slots Evolved 16 | . . . 2 . . . 2 . . 4 2 2 . . . . 2 2 Power 2 | . . . . . . . 1 . . . . . . . . . . 1 Propulsion 6 | . . . . . . . . . . 4 1 . . . . . 1 . Utility 8 | . . . 2 . . . 1 . . . 1 2 . . . . 1 1 Weapon . | . . . . . . . . . . . . . . . . . . . Parts Attached 161 | 8 4 2 14 12 5 3 5 18 3 20 15 7 3 4 8 4 11 15 Power 24 | 1 . . 2 . . 2 1 3 1 3 3 1 . . 2 . 3 2 Engine 9 | 1 . . 2 . . 1 1 1 . 1 2 . . . . . . . Core 6 | . . . . . . 1 . 2 1 1 1 . . . . . . . Reactor 9 | . . . . . . . . . . 1 . 1 . . 2 . 3 2 Propulsion 42 | 2 . 2 2 3 . 1 . 4 . 9 4 3 1 3 3 . 3 2 Treads 2 | . . . 2 . . . . . . . . . . . . . . . Leg 19 | 2 . 2 . 3 . 1 . 4 . 7 . . . . . . . . Wheel 1 | . . . . . . . . . . 1 . . . . . . . . Hover 2 | . . . . . . . . . . . 1 1 . . . . . . Flight 18 | . . . . . . . . . . 1 3 2 1 3 3 . 3 2 Utility 52 | 3 2 . 4 5 3 . 2 3 . 3 7 3 1 1 3 2 3 7 Device 20 | 2 . . 1 1 1 . 2 . . 1 4 2 1 1 . 1 1 2 Storage 6 | 1 . . 2 . 2 . . . . . . . . . 1 . . . Processor 6 | . 2 . . 2 . . . . . 1 1 . . . . . . . Hackware 7 | . . . . . . . . . . . 2 1 . . 1 . 1 2 Protection 13 | . . . 1 2 . . . 3 . 1 . . . . 1 1 1 3 Artifact . | . . . . . . . . . . . . . . . . . . . Weapon 43 | 2 2 . 6 4 2 . 2 8 2 5 1 . 1 . . 2 2 4 Energy Gun 4 | 1 2 . 1 . . . . . . . . . . . . . . . Energy Cannon . | . . . . . . . . . . . . . . . . . . . Ballistic Gun 9 | 1 . . 4 2 . . . . . . . . . . . . 1 1 Ballistic Cannon 1 | . . . 1 . . . . . . . . . . . . . . . Launcher 9 | . . . . 2 1 . . 3 2 1 . . . . . . . . Special Weapon 4 | . . . . . 1 . . . . . . . . . . 2 1 . Impact Weapon 12 | . . . . . . . 2 5 . 4 1 . . . . . . . Slashing Weapon 1 | . . . . . . . . . . . . . 1 . . . . . Piercing Weapon 3 | . . . . . . . . . . . . . . . . . . 3 Special Melee Weapon . | . . . . . . . . . . . . . . . . . . . Unidentified Prototypes 14 | . . . 2 . 2 . . 2 . . 1 . . . 5 . 1 1 Parts Lost 67 | . . 2 2 8 . 3 . 2 . 19 . . 9 6 . 2 4 10 Power 10 | . . . 1 . . 2 . 2 . 3 . . 1 . . . . 1 Propulsion 30 | . . 2 1 2 . 1 . . . 9 . . 5 4 . . 2 4 Utility 20 | . . . . 4 . . . . . 5 . . 2 2 . 1 1 5 Weapon 7 | . . . . 2 . . . . . 2 . . 1 . . 1 1 . Highest Loss Streak 17 | . . 1 2 8 . 2 . 2 . 17 . . 9 4 . 2 3 8 To Critical Strikes 2 | . . . . . . . . . . 1 . . . 1 . . . . Average Slot Usage (%) 78 | . 100 96 90 92 93 87 72 82 90 83 56 85 51 42 46 54 53 53 Engine 5 | . 14 12 9 11 11 3 9 9 3 4 1 . . . . . . . Core 2 | . . . . . . 7 . 5 14 3 1 5 . . . . . . Reactor 1 | . . . . . . . . . . 3 . 4 . . 1 5 3 3 Treads 2 | . . . 18 6 . . . . . . . . . . . . . . Leg 12 | . 28 26 . 9 22 21 18 18 18 27 . . . . . . . . Flight 3 | . . . . . . . . . . . 6 17 6 4 9 15 16 15 Device 4 | . 11 . 8 9 5 . . . . 2 3 14 6 3 . 4 1 1 Storage 5 | . . . 8 11 11 11 9 9 9 5 . . . . 1 . . . Processor 16 | . 16 28 13 18 22 22 18 18 18 19 13 10 10 10 8 5 4 3 Hackware 4 | . . . . . . . . . . . 10 14 15 15 17 21 20 14 Protection 2 | . . . 8 3 . . . 5 9 1 . . . . 1 . 4 13 Energy Gun 2 | . 21 28 3 . . . . . . . . . . . . . . . Ballistic Gun 2 | . 6 . 15 7 . . . . . . . . . . . . . . Launcher 6 | . . . . 14 21 22 7 . 16 . . . . . . . . . Impact Weapon 5 | . . . . . . . 10 17 1 12 9 10 5 5 3 . . . Naked Turns . | . . . . . . . . . . . . . . . . . . . Heaviest Build 41 | 14 11 11 32 32 22 19 22 31 31 41 24 40 40 12 22 18 23 24 Greatest Support 95 | 20 20 20 40 40 20 20 20 30 30 95 29 51 51 15 18 18 24 26 Greatest Overweight (x) 4 | . . 1 2 2 1 1 1 1 1 4 . . . . 1 . . 1 Average Overweight (x) . | . . . . 1 . . . . . . . . . . . . . . Largest Inventory Capacity 10 | 8 5 5 10 10 10 10 10 10 10 10 5 5 5 5 5 5 5 5 Average Capacity 7 | 7 5 5 7 10 10 10 10 10 10 9 5 5 5 5 5 5 5 5 Most Carried 10 | 1 5 5 10 10 10 10 10 10 10 10 5 5 5 5 5 5 5 5 Average Carried 7 | . 3 4 7 7 9 9 9 9 10 9 4 4 4 4 4 4 3 4 Final Capacity 10 | 5 5 5 10 10 10 10 10 10 10 5 5 5 5 5 5 5 5 5 Final Carried 10 | 1 5 5 10 8 10 9 10 10 10 5 5 5 5 5 5 4 4 5 Class Distribution -------------------- 51% | Scavenger-Mutant 19% | Hacker-Mutant 14% | Mutant 10% | Hacker-Sprinter 3% | Commander-Mutant Dominant Class ---------------- Mutant | -10/Materials Mutant | -10/Mines Mutant | -9/Materials Scavenger-Mutant | -9/Mines Scavenger-Mutant | -9/Exiles Scavenger-Mutant | -8/Mines Scavenger-Mutant | -8/Materials Scavenger-Mutant | -8/Storage Scavenger-Mutant | -8/Recycling Scavenger-Mutant | -6/Factory Hacker-Mutant | -5/Factory Hacker-Mutant | -4/Factory Hacker-Mutant | -4/Upper Caves Hacker-Mutant | -4/Upper Caves Hacker-Mutant | -4/Zhirov Hacker-Sprinter | -3/Proximity Caves Hacker-Sprinter | -3/Research Hacker-Sprinter | -2/Research Resources | -11 -10 -10 -9 -9 -9 -8 -8 -8 -8 -6 -5 -4 -4 -4 -4 -3 -3 -2 ----------- Run | Scr Mat Min Mat Min Exi Min Mat Sto Rec Fac Fac Fac Upp Upp Zhi Pro Res Res Matter Collected 2370 | 213 118 126 406 176 30 82 163 173 162 167 113 66 52 30 . 125 2 166 Remotely . | . . . . . . . . . . . . . . . . . . . Salvage Created 5691 | 58 125 148 778 135 . 162 227 766 4 2127 843 66 88 164 . . . . Parts 225 | 9 11 3 58 11 . 6 11 32 10 51 13 1 2 7 . . . . Haulers Intercepted 10 | . . . 3 . . . . 3 . . 4 . . . . . . . Recyclers Shooed 8 | . 1 . 2 . . . 1 . . 3 1 . . . . . . . Parts Field Recycled . | . . . . . . . . . . . . . . . . . . . Retrieved Matter . | . . . . . . . . . . . . . . . . . . . Parts Self-Destructed 7 | . . . . . . . . . . . . . 2 3 . 2 . . Prevented 4 | . . . . . . . . . . . . . 1 1 . 2 . . Kills | -11 -10 -10 -9 -9 -9 -8 -8 -8 -8 -6 -5 -4 -4 -4 -4 -3 -3 -2 ------- Run | Scr Mat Min Mat Min Exi Min Mat Sto Rec Fac Fac Fac Upp Upp Zhi Pro Res Res Combat Hostiles Destroyed 66 | . 1 4 11 4 . 5 . 9 5 19 . 1 2 5 . . . . Melee 20 | . . . . . . . . 5 . 8 . 1 1 5 . . . . Guns 15 | . 1 3 8 3 . . . . . . . . . . . . . . Cannons 3 | . . . 3 . . . . . . . . . . . . . . . AOE 18 | . . . . 1 . 5 . 4 5 3 . . . . . . . . Classes Destroyed 16 | 1 3 . 5 2 . . . . 1 2 1 . . 1 . . . . Worker 12 | . . . 2 . . . 3 2 . 1 4 . . . . . . . Builder 18 | . . . 2 . . . 4 1 . 10 1 . . . . . . . Tunneler 4 | 3 . . . . . . 1 . . . . . . . . . . . Hauler 10 | . . . 3 . . . . 3 . . 4 . . . . . . . Recycler 20 | . 1 . 2 . . 1 1 4 . 8 3 . . . . . . . Mechanic 1 | . . . . . . . . . . . 1 . . . . . . . Operator 4 | . . . 1 . . . 1 1 . . . 1 . . . . . . Drone 5 | . . . . . . . . . 5 . . . . . . . . . Watcher 3 | . 1 . 1 . . . . . . 1 . . . . . . . . Swarmer 17 | . . . . 1 . 2 . 3 . 4 . . 2 5 . . . . Grunt 30 | . 1 4 5 1 . 4 . 3 . 12 . . . . . . . . Sentry 9 | . . . 6 . . . . 3 . . . . . . . . . . Demolisher 2 | . . . . 2 . . . . . . . . . . . . . . Hunter 1 | . . . . . . . . . . 1 . . . . . . . . Programmer 3 | . . . . . . . . . . 2 . 1 . . . . . . Packrat 1 | . . . . . . . . . . . . . 1 . . . . . Samaritan 1 | . . . . . . . . . . . . . . 1 . . . . Best Kill Streak 22 | 3 1 2 5 3 . 3 5 6 1 22 6 1 1 5 . . . . Combat Bots Only 6 | . 1 2 4 3 . 3 . 3 1 6 . 1 1 5 . . . . Max Kills in Single Turn 5 | 1 1 1 2 1 . 2 1 5 1 3 1 1 1 1 . . . . Gunslinging 1 | . . . 1 . . . . . . . . . . . . . . . Exploded 3 | . . . . 1 . 2 . 3 1 2 . . . . . . . . Melee 1 | . . . . . . . . 1 . 1 . 1 1 1 . . . . Uniques/NPCs Destroyed . | . . . . . . . . . . . . . . . . . . . Combat | -11 -10 -10 -9 -9 -9 -8 -8 -8 -8 -6 -5 -4 -4 -4 -4 -3 -3 -2 -------- Run | Scr Mat Min Mat Min Exi Min Mat Sto Rec Fac Fac Fac Upp Upp Zhi Pro Res Res Damage Taken 9703 | . 65 412 480 1070 . 203 . 248 44 2805 14 105 811 582 . 356 308 2200 Core 3395 | . 12 98 109 91 . 36 . 41 2 819 14 14 179 290 . 127 103 1460 Absorbed by Shields 850 | . . . 120 5 . . . . 10 387 5 38 234 . . . . 51 Redirected to Shielding 378 | . . . . . . . . . . . . . . . . 41 20 317 Regen/Repaired (Parts) 118 | . . . . . . . . 25 . . . . . . . . 93 . Core Remaining (%) 65 | 100 . 56 . . . 41 . . 92 3 98 . . . . 43 92 . Volleys Fired 126 | 7 8 16 49 12 . 7 1 1 6 2 . . . . . 9 2 6 Largest 2 | 2 2 2 2 2 . 2 2 2 2 1 . . . . . 1 1 1 Hottest 130 | 70 130 130 104 60 . 60 60 60 60 30 . . . . . 100 100 38 Shots Fired 233 | 14 16 32 98 24 . 14 2 2 12 2 . . . . . 9 2 6 Gun 164 | 14 16 32 73 22 . . . . . . . . . . . . 1 6 Cannon 25 | . . . 25 . . . . . . . . . . . . . . . Launcher 34 | . . . . 2 . 14 2 2 12 2 . . . . . . . . Special 10 | . . . . . . . . . . . . . . . . 9 1 . Kinetic 113 | 7 4 . 73 22 . . . . . . . . . . . . 1 6 Thermal 86 | 7 12 32 25 . . . . . . . . . . . . 9 1 . Explosive 34 | . . . . 2 . 14 2 2 12 2 . . . . . . . . Electromagnetic . | . . . . . . . . . . . . . . . . . . . Robot Hit Streak 19 | 6 5 14 19 9 . 8 . 9 11 2 . . . . . . . 6 Robot Miss Streak 3 | 1 2 1 3 1 . . . . 3 . . . . . . . . 1 Penetration Max . | . . . . . . . . . . . . . . . . . . . Secondary Targets 2 | . . . 1 1 . . . . . . . . . . . . . . Max Gunslinging Chain 1 | . . . 1 1 . . . . . . . . . . . . . . Shots Hit Robots 279 | 9 10 26 79 18 . 4 11 23 3 52 16 7 8 7 . . . 6 Core Hits 152 | 5 5 6 36 9 . 21 4 13 7 33 6 1 1 4 . . . 1 Critical Kills 8 | . . . . . . . 1 1 . 2 3 1 . . . . . . Critical Parts Destroyed 31 | . . . . . . . . 7 . 17 1 3 1 2 . . . . Critical Strikes 43 | 1 . . 2 1 . . 1 8 . 19 4 4 1 2 . . . . Burn 3 | 1 . . 2 . . . . . . . . . . . . . . . Destroy 1 | . . . . 1 . . . . . . . . . . . . . . Smash 39 | . . . . . . . 1 8 . 19 4 4 1 2 . . . . Melee Attacks 257 | . . . . . . . 16 54 . 78 40 33 18 11 5 . . 2 Impact 253 | . . . . . . . 16 54 . 78 40 33 18 9 5 . . . Slashing 2 | . . . . . . . . . . . . . . 2 . . . . Piercing 2 | . . . . . . . . . . . . . . . . . . 2 Sneak Attacks 48 | . . . . . . . 9 12 . 13 10 1 1 1 . . . 1 Combat Hostiles 3 | . . . . . . . . 1 . 2 . . . . . . . . Follow-up Attacks 10 | . . . . . . . . 2 . 6 . . 2 . . . . . Damage Inflicted 13062 | 110 130 390 1410 384 . 744 887 1820 542 4018 1223 344 462 345 . . . 253 Guns 2071 | 110 130 390 997 301 . . . . . . . . . . . . . 143 Cannons 413 | . . . 413 . . . . . . . . . . . . . . . Explosions 2274 | . . . . 83 . 744 . 186 529 732 . . . . . . . . Melee 8291 | . . . . . . . 887 1634 . 3286 1223 344 462 345 . . . 110 Ramming 13 | . . . . . . . . . 13 . . . . . . . . . Kinetic 1633 | 32 18 . 1139 301 . . . . . . . . . . . . . 143 Thermal 851 | 78 112 390 271 . . . . . . . . . . . . . . . Explosive 2001 | . . . . 83 . 744 . 186 529 459 . . . . . . . . Electromagnetic 273 | . . . . . . . . . . 273 . . . . . . . . Impact 8181 | . . . . . . . 887 1634 . 3286 1223 344 462 345 . . . . Slashing . | . . . . . . . . . . . . . . . . . . . Piercing 110 | . . . . . . . . . . . . . . . . . . 110 Highest Corruption 7 | . . . . . . . . . . 4 7 . . . . 1 1 2 Average Corruption 3 | . . . . . . . . . . 2 4 . . . . 1 1 1 Corruption Purged 5 | . . . . . . . . . . . 5 . . . . . . . Corruption Blocked . | . . . . . . . . . . . . . . . . . . . Effects 26 | . . . . . . . . . . 12 13 . . . . 1 . . Message Errors 9 | . . . . . . . . . . 3 6 . . . . . . . Matter Fused 7 | . . . . . . . . . . 3 4 . . . . . . . Heat Flow Errors 3 | . . . . . . . . . . 3 . . . . . . . . Energy Discharges 3 | . . . . . . . . . . 1 1 . . . . 1 . . Parts Rejected 1 | . . . . . . . . . . 1 . . . . . . . . Data Loss (minor) 2 | . . . . . . . . . . 1 1 . . . . . . . Data Loss (major) 1 | . . . . . . . . . . . 1 . . . . . . . Overload Shots . | . . . . . . . . . . . . . . . . . . . Overflow Damage 4334 | . . . 4 . . 75 387 1046 32 1777 477 212 173 151 . . . . Projectiles 11 | . . . 4 . . . . . . 7 . . . . . . . . Explosions 182 | . . . . . . 75 . . 32 75 . . . . . . . . Melee 4141 | . . . . . . . 387 1046 . 1695 477 212 173 151 . . . . Knockbacks 36 | . . . 4 . . . 2 5 . 15 3 5 2 . . . . . Impact 29 | . . . . . . . 2 5 . 12 3 5 2 . . . . . Kinetic 4 | . . . 4 . . . . . . . . . . . . . . . Secondary 3 | . . . . . . . . . . 3 . . . . . . . . Self-Inflicted Damage 293 | . . . . . . 146 . . 12 135 . . . . . . . . Shots 10 | . . . . . . 4 . . 2 4 . . . . . . . . Rammed . | . . . . . . . . . . . . . . . . . . . Targets Rammed 2 | . . . . . . . . . 2 . . . . . . . . . Kicked 2 | . . . . . . . . . 2 . . . . . . . . . Crushed . | . . . . . . . . . . . . . . . . . . . Highest Temperature 547 | 130 207 547 204 . . 26 . 15 18 237 . . 17 . . . . . Average Temperature 122 | 67 74 266 64 . . 18 . 10 9 97 . . 8 . . . . . Received Heat Transfer 1837 | . 36 267 153 . . 36 . 72 21 775 . . 162 30 . 39 18 228 Effects 13 | . . 12 . . . . . . . 1 . . . . . . . . Shutdowns 5 | . . 5 . . . . . . . . . . . . . . . . Energy Bleed 1 | . . . . . . . . . . 1 . . . . . . . . Interference 3 | . . 3 . . . . . . . . . . . . . . . . Matter Decay 2 | . . 2 . . . . . . . . . . . . . . . . Short Circuit 1 | . . 1 . . . . . . . . . . . . . . . . Damage (minor) 1 | . . 1 . . . . . . . . . . . . . . . . Siege Activations . | . . . . . . . . . . . . . . . . . . . Robots Corrupted 1 | . . . . . . . . . . 1 . . . . . . . . Combat Hostiles . | . . . . . . . . . . . . . . . . . . . Parts Fried 67 | . . . . . . . 6 10 . 39 10 1 . 1 . . . . Impact Corruptions 125 | . . . . . . . 11 21 . 54 13 8 5 13 . . . . Robots Melted 1 | . . 1 . . . . . . . . . . . . . . . . Combat Hostiles 1 | . . 1 . . . . . . . . . . . . . . . . Parts Melted 4 | . . 1 3 . . . . . . . . . . . . . . . Heat Transferred 2368 | 296 296 962 814 . . . . . . . . . . . . . . . Parts Sabotaged . | . . . . . . . . . . . . . . . . . . . Parts Stolen . | . . . . . . . . . . . . . . . . . . . Parts Stripped . | . . . . . . . . . . . . . . . . . . . Power Chain Reactions . | . . . . . . . . . . . . . . . . . . . Missiles Intercepted . | . . . . . . . . . . . . . . . . . . . Alert | -11 -10 -10 -9 -9 -9 -8 -8 -8 -8 -6 -5 -4 -4 -4 -4 -3 -3 -2 ------- Run | Scr Mat Min Mat Min Exi Min Mat Sto Rec Fac Fac Fac Upp Upp Zhi Pro Res Res Peak Influence 1337 | 15 44 136 308 71 . 205 57 225 181 1337 385 93 . . . . 121 327 Initial 919 | . 9 16 . . . . 13 . 28 919 385 4 . . . . 33 67 Average 182 | 5 28 55 101 21 . 97 28 100 73 992 157 33 . . . . 69 192 Maximum Alert Level 4 | . . . 1 . . 1 . 1 . 4 1 . . . . . . 1 Low Security (%) 77 | 100 100 100 85 100 . 74 100 86 100 . 56 100 . . . . 100 50 Level 1 11 | . . . 14 . . 25 . 13 . . 43 . . . . . . 49 Level 2 . | . . . . . . . . . . . . . . . . . . . Level 3 9 | . . . . . . . . . . 84 . . . . . . . . Level 4 1 | . . . . . . . . . . 15 . . . . . . . . Level 5 . | . . . . . . . . . . . . . . . . . . . High Security . | . . . . . . . . . . . . . . . . . . . Max Security . | . . . . . . . . . . . . . . . . . . . Squads Dispatched 17 | . . . 2 1 . . . 1 1 4 1 1 . . . . 1 5 Investigation 2 | . . . 1 . . . . . . . . . . . . . 1 . Extermination 3 | . . . . . . . . . . 1 1 1 . . . . . . Reinforcement 11 | . . . 1 1 . . . 1 1 2 . . . . . . . 5 Assault . | . . . . . . . . . . . . . . . . . . . Garrison 1 | . . . . . . . . . . 1 . . . . . . . . Intercept . | . . . . . . . . . . . . . . . . . . . Searches Triggered 2 | . . . . . . . . . . 2 . . . . . . . . Construction Impeded 4 | . . . 1 1 . . . . 1 1 . . . . . . . . Haulers Reinforced 2 | . . . . . . . . . . 1 . . . . . . . 1 Active Scanning Responses . | . . . . . . . . . . . . . . . . . . . Cargo Convoy Interrupts . | . . . . . . . . . . . . . . . . . . . Stealth | -11 -10 -10 -9 -9 -9 -8 -8 -8 -8 -6 -5 -4 -4 -4 -4 -3 -3 -2 --------- Run | Scr Mat Min Mat Min Exi Min Mat Sto Rec Fac Fac Fac Upp Upp Zhi Pro Res Res Distress Signals 9 | . . . . 1 . . . 2 . 1 . . . . . . . 5 Communications Jammed . | . . . . . . . . . . . . . . . . . . . Distress Signals . | . . . . . . . . . . . . . . . . . . . Times Spotted 215 | . 2 9 15 4 . 7 2 13 12 42 2 3 11 21 . 12 7 53 Peak Tracking Total 28 | . 1 3 4 2 . 4 1 3 3 10 1 2 7 9 . 10 6 28 Tactical Retreats 27 | . . 1 . . . . . 1 . 5 . 1 2 6 . 2 1 8 Traps | -11 -10 -10 -9 -9 -9 -8 -8 -8 -8 -6 -5 -4 -4 -4 -4 -3 -3 -2 ------- Run | Scr Mat Min Mat Min Exi Min Mat Sto Rec Fac Fac Fac Upp Upp Zhi Pro Res Res Traps Triggered 10 | . . . 1 . . . . 1 . 4 1 . . . . . 2 1 Indirectly . | . . . . . . . . . . . . . . . . . . . Trap Hack Attempts . | . . . . . . . . . . . . . . . . . . . Triggered . | . . . . . . . . . . . . . . . . . . . Disarmed . | . . . . . . . . . . . . . . . . . . . Reprogrammed . | . . . . . . . . . . . . . . . . . . . Reused . | . . . . . . . . . . . . . . . . . . . Traps Extracted . | . . . . . . . . . . . . . . . . . . . Installed 1 | . . . . . . . . . . . . . . . . 1 . . Triggered 2 | . . . . . . . . 1 . . . . . . . 1 . . Machines | -11 -10 -10 -9 -9 -9 -8 -8 -8 -8 -6 -5 -4 -4 -4 -4 -3 -3 -2 ---------- Run | Scr Mat Min Mat Min Exi Min Mat Sto Rec Fac Fac Fac Upp Upp Zhi Pro Res Res Machines Disabled 13 | . . . . . . 1 1 2 4 2 . 2 . . . . . 1 Max in Single Turn 2 | . . . . . . 1 1 1 2 2 . 1 . . . . . 1 Machines Sabotaged . | . . . . . . . . . . . . . . . . . . . Garrisons Compromised . | . . . . . . . . . . . . . . . . . . . Overloaded Fab Kills . | . . . . . . . . . . . . . . . . . . . Hacking | -11 -10 -10 -9 -9 -9 -8 -8 -8 -8 -6 -5 -4 -4 -4 -4 -3 -3 -2 --------- Run | Scr Mat Min Mat Min Exi Min Mat Sto Rec Fac Fac Fac Upp Upp Zhi Pro Res Res Machines Accessed 54 | . 1 . 3 . 4 . . 6 7 3 8 3 1 1 9 . 3 5 Terminals 29 | . 1 . 3 . . . . 4 5 3 6 3 . . . . 1 3 Fabricators 3 | . . . . . . . . . . . 1 . . . . . 1 1 Repair Stations 2 | . . . . . . . . 1 . . . . . . . . 1 . Recycling Units 4 | . . . . . . . . 1 2 . . . . . . . . 1 Scanalyzers 1 | . . . . . . . . . . . 1 . . . . . . . Garrison Access . | . . . . . . . . . . . . . . . . . . . Total Hacks 182 | . 3 . 6 . 49 . . 9 15 6 17 9 1 1 48 . 10 8 Successful 149 | . . . 1 . 49 . . 8 10 4 10 8 1 1 48 . 5 4 Failed 33 | . 3 . 5 . . . . 1 5 2 7 1 . . . . 5 4 Catastrophic 3 | . 1 . . . . . . . 1 . 1 . . . . . . . Database Lockouts . | . . . . . . . . . . . . . . . . . . . Manual 23 | . 3 . 6 . 1 . . 2 . 3 6 2 . . . . . . Terminals 63 | . 3 . 6 . . . . 6 13 6 13 9 . . . . 3 4 Fabricators 5 | . . . . . . . . . . . 2 . . . . . 2 1 Repair Stations 7 | . . . . . . . . 2 . . . . . . . . 5 . Recycling Units 6 | . . . . . . . . 1 2 . . . . . . . . 3 Scanalyzers 2 | . . . . . . . . . . . 2 . . . . . . . Garrison Access . | . . . . . . . . . . . . . . . . . . . Terminal Hacks 136 | . . . 1 . 49 . . 5 8 4 7 8 1 1 48 . 1 3 Record 95 | . . . . . 49 . . . 3 2 1 2 . . 36 . . 2 Part Schematic 4 | . . . . . . . . . . . . . . . 4 . . . Robot Analysis 4 | . . . . . . . . . . . . . . . 4 . . . Prototype ID Bank 6 | . . . . . . . . . 1 . . . . . 4 . . 1 Open Door 3 | . . . . . . . . 1 . . . . 1 1 . . . . Open DSF 2 | . . . . . . . . . . 1 1 . . . . . . . Branch Access Points 1 | . . . . . . . . . . . . 1 . . . . . . Emergency Access Points 1 | . . . . . . . . . . . . 1 . . . . . . Terminal Index 1 | . . . . . . . . . 1 . . . . . . . . . Alert Level 4 | . . . . . . . . 1 1 . 1 1 . . . . . . Unreport Threat 6 | . . . 1 . . . . . 1 1 3 . . . . . . . Locate Traps 1 | . . . . . . . . . . . . 1 . . . . . . Dispatch Records 1 | . . . . . . . . . 1 . . . . . . . . . Patrol Status 2 | . . . . . . . . . . . 1 1 . . . . . . Recall Investigation 1 | . . . . . . . . 1 . . . . . . . . . . Recall Extermination 1 | . . . . . . . . . . . . . . . . . 1 . Hauler Manifests 1 | . . . . . . . . . . . . 1 . . . . . . Zone Layout 2 | . . . . . . . . 2 . . . . . . . . . . Fabricator Hacks 3 | . . . . . . . . . . . 1 . . . . . 2 . Load Schematic 1 | . . . . . . . . . . . . . . . . . 1 . Build 2 | . . . . . . . . . . . 1 . . . . . 1 . Repair Station Hacks 4 | . . . . . . . . 2 . . . . . . . . 2 . Scan Component 2 | . . . . . . . . 1 . . . . . . . . 1 . Repair 2 | . . . . . . . . 1 . . . . . . . . 1 . Recycling Unit Hacks 4 | . . . . . . . . 1 2 . . . . . . . . 1 Report Inventory 4 | . . . . . . . . 1 2 . . . . . . . . 1 Scanalyzer 2 | . . . . . . . . . . . 2 . . . . . . . Insert Component 1 | . . . . . . . . . . . 1 . . . . . . . Analyze 1 | . . . . . . . . . . . 1 . . . . . . . Garrison Access Hacks . | . . . . . . . . . . . . . . . . . . . Unauthorized Hacks . | . . . . . . . . . . . . . . . . . . . Terminals . | . . . . . . . . . . . . . . . . . . . Fabricators . | . . . . . . . . . . . . . . . . . . . Repair Stations . | . . . . . . . . . . . . . . . . . . . Recycling Units . | . . . . . . . . . . . . . . . . . . . Scanalyzers . | . . . . . . . . . . . . . . . . . . . Garrison Access . | . . . . . . . . . . . . . . . . . . . Data Cores Recovered 1 | . . . 1 . . . . . . . . . . . . . . . Used . | . . . . . . . . . . . . . . . . . . . Hacking Detections 28 | . 1 . 3 . . . . 3 5 2 5 2 . . . . 3 4 Full Trace Events 4 | . 1 . . . . . . . 2 . . . . . . . 1 . Feedback Events . | . . . . . . . . . . . . . . . . . . . Feedback Blocked . | . . . . . . . . . . . . . . . . . . . Robot Schematics Acquired . | . . . . . . . . . . . . . . . . . . . Robots Built . | . . . . . . . . . . . . . . . . . . . Authchips . | . . . . . . . . . . . . . . . . . . . Time . | . . . . . . . . . . . . . . . . . . . Total Robot Build Rating . | . . . . . . . . . . . . . . . . . . . Part Schematics Acquired 5 | . . . . . . . . . . . 1 . . . 4 . . . Parts Built 1 | . . . . . . . . . . . 1 . . . . . . . Authchips . | . . . . . . . . . . . . . . . . . . . Time 256 | . . . . . . . . . . . 69 . . . . . 187 . Total Part Build Rating 9 | . . . . . . . . . . . 9 . . . . . . . Parts Repaired 2 | . . . . . . . . 1 . . . . . . . . 1 . Time 57 | . . . . . . . . 26 . . . . . . . . 31 . Parts Recycled . | . . . . . . . . . . . . . . . . . . . Recycled Matter . | . . . . . . . . . . . . . . . . . . . Retrieved Matter . | . . . . . . . . . . . . . . . . . . . Retrieved Components . | . . . . . . . . . . . . . . . . . . . Parts Scanalyzed 1 | . . . . . . . . . . . 1 . . . . . . . Part Schematics Acquired 1 | . . . . . . . . . . . 1 . . . . . . . Parts Damaged . | . . . . . . . . . . . . . . . . . . . Bothacking | -11 -10 -10 -9 -9 -9 -8 -8 -8 -8 -6 -5 -4 -4 -4 -4 -3 -3 -2 ------------ Run | Scr Mat Min Mat Min Exi Min Mat Sto Rec Fac Fac Fac Upp Upp Zhi Pro Res Res Used RIF Installer . | . . . . . . . . . . . . . . . . . . . Robots Hacked . | . . . . . . . . . . . . . . . . . . . Non-combat . | . . . . . . . . . . . . . . . . . . . Combat . | . . . . . . . . . . . . . . . . . . . Robot Hacks Applied . | . . . . . . . . . . . . . . . . . . . Relay Couplers Released . | . . . . . . . . . . . . . . . . . . . Fabnet Peak Effective % . | . . . . . . . . . . . . . . . . . . . Robots Rewired 11 | . . . . . . . . . 11 . . . . . . . . . Allies Hacked . | . . . . . . . . . . . . . . . . . . . Hacks Repelled . | . . . . . . . . . . . . . . . . . . . Allies | -11 -10 -10 -9 -9 -9 -8 -8 -8 -8 -6 -5 -4 -4 -4 -4 -3 -3 -2 -------- Run | Scr Mat Min Mat Min Exi Min Mat Sto Rec Fac Fac Fac Upp Upp Zhi Pro Res Res Total Allies 16 | . . 2 . 3 . . . . 11 . . . . . . . . . Largest Group 11 | . . 2 . 3 3 3 . . 11 6 . . . . . . . . Highest-Rated Group 173 | . . 38 . 40 40 40 . . 173 104 . . . . . . . . Highest-Rated Ally 31 | . . 31 . 16 16 16 . . 27 27 . . . . . . . . Total Orders . | . . . . . . . . . . . . . . . . . . . Ally Attacks 109 | . . 5 . 4 . 7 . . 93 . . . . . . . . . Total Damage 1006 | . . 64 . 23 . 112 . . 807 . . . . . . . . . Kills 20 | . . . . . . 2 . . 18 . . . . . . . . . Allies Corrupted . | . . . . . . . . . . . . . . . . . . . Allies Melted . | . . . . . . . . . . . . . . . . . . . Intel | -11 -10 -10 -9 -9 -9 -8 -8 -8 -8 -6 -5 -4 -4 -4 -4 -3 -3 -2 ------- Run | Scr Mat Min Mat Min Exi Min Mat Sto Rec Fac Fac Fac Upp Upp Zhi Pro Res Res Robot Analysis Total 4 | . . . . . . . . . . . . . . . 4 . . . Derelict Logs Recovered 5 | . . 1 . 1 . . . . . . . . 1 2 . . . . Drone Launches . | . . . . . . . . . . . . . . . . . . . Drone Recoveries . | . . . . . . . . . . . . . . . . . . . Exploration | -11 -10 -10 -9 -9 -9 -8 -8 -8 -8 -6 -5 -4 -4 -4 -4 -3 -3 -2 ------------- Run | Scr Mat Min Mat Min Exi Min Mat Sto Rec Fac Fac Fac Upp Upp Zhi Pro Res Res Turns Passed 11036 | 96 319 416 902 827 793 753 836 802 887 1014 918 677 322 210 433 167 170 494 Spaces Moved 8434 | 58 228 251 370 372 540 577 262 267 523 476 950 477 591 439 344 438 263 1008 Core 286 | 7 . . 12 . . . . . . 10 48 . . 43 143 . . 23 Treads 459 | . . . 317 142 . . . . . . . . . . . . . . Legs 3425 | 51 228 251 41 230 540 577 262 267 523 455 . . . . . . . . Wheels 11 | . . . . . . . . . . 11 . . . . . . . . Hover 13 | . . . . . . . . . . . 13 . . . . . . . Flight 4240 | . . . . . . . . . . . 889 477 591 396 201 438 263 985 Fastest Speed 23 | 50 120 120 120 160 120 120 120 120 120 50 39 33 33 32 29 29 26 23 Average Speed 83 | 111 120 122 158 206 144 120 124 187 122 119 40 35 39 39 39 29 27 25 Slowest Speed 260 | 120 120 190 190 260 190 190 190 190 190 250 60 39 40 50 99 29 32 100 Overloaded Moves 7 | . . . . . . . . . . . . . . . . . 7 . Propulsion Burnouts . | . . . . . . . . . . . . . . . . . . . Robots Hopped 36 | . . . . . . . . . . . . . 4 . . 4 4 24 Cave-ins Triggered 1 | . . . . . . . . . . 1 . . . . . . . . Teleports 1 | . . . . . . . . . . . . . . . 1 . . . Exploration Rate (%) 46 | 4 45 52 37 75 91 96 14 39 93 15 19 12 76 60 62 55 11 34 Regions Visited 18 Branch Regions 10 Pre-discovered Areas 8 | . . 1 . 2 1 . . . . . . . 1 . 3 . . . Known Exits Taken 1 | . . . . . . . . . . . . 1 . . . . . . Unknown Exits Taken 17 | 1 1 1 1 1 1 1 1 1 1 1 1 . 1 1 1 1 1 . Scrap Searched 11 | . . . . 1 . 1 . . . . . . 4 2 . 3 . . Spaces Dug 134 | . . . . . . 70 2 4 . 18 18 16 1 . 5 . . . Terrain Destroyed 404 | . . . 2 14 . 152 24 17 120 35 18 16 1 . 5 . . . Melee 64 | . . . . . . . 2 4 . 18 18 16 1 . 5 . . . Projectile 2 | . . . 2 . . . . . . . . . . . . . . . AOE 338 | . . . . 14 . 152 22 13 120 17 . . . . . . . . Terrain Rammed . | . . . . . . . . . . . . . . . . . . . Walls Destroyed . | . . . . . . . . . . . . . . . . . . . Machines Disabled . | . . . . . . . . . . . . . . . . . . . Actions | -11 -10 -10 -9 -9 -9 -8 -8 -8 -8 -6 -5 -4 -4 -4 -4 -3 -3 -2 --------- Run | Scr Mat Min Mat Min Exi Min Mat Sto Rec Fac Fac Fac Upp Upp Zhi Pro Res Res Total 11680 | 73 258 328 590 406 555 620 748 478 754 777 1420 935 645 456 628 448 351 1210 Wait 2485 | . 12 57 133 5 . 34 460 136 54 202 407 420 37 3 264 . 76 185 Move 8348 | 57 227 250 369 371 539 576 261 266 522 475 949 476 582 438 343 430 254 963 Hop 32 | . . . . . . . . . . . . . 4 . . 3 4 21 Pick Up 41 | . 3 1 12 3 3 . 2 2 . 2 8 2 . 1 . . . 2 Fast Attach 106 | 8 4 . 10 6 4 2 3 9 1 13 9 5 2 3 9 2 7 9 Attach 37 | . . 1 1 5 1 1 2 1 . 4 5 1 1 1 1 2 4 6 Detach 26 | 1 1 1 1 . 2 . 3 1 . . 1 . 2 . 2 1 4 6 Swap 20 | . . 1 3 1 . . . 8 2 3 1 1 . . . . . . Drop 57 | . 3 1 12 3 6 . 3 8 1 3 6 3 1 1 4 . . 2 Fire 126 | 7 8 16 49 12 . 7 1 1 6 2 . . . . . 9 2 6 Melee 216 | . . . . . . . 13 46 . 64 34 27 16 9 5 . . 2 Ram . | . . . . . . . . . . . . . . . . . . . Kick 2 | . . . . . . . . . 2 . . . . . . . . . Crush . | . . . . . . . . . . . . . . . . . . . Escape Stasis 17 | . . . . . . . . . . 9 . . . . . . . 8 Rewire 166 | . . . . . . . . . 166 . . . . . . . . . Trap 1 | . . . . . . . . . . . . . . . . 1 . . Miscellaneous . | . . . . . . . . . . . . . . . . . . . Route ------- -11/Scrapyard -10/Materials (discovered 2 exits: *Mat / [*Min]) -10/Mines -9/Materials (discovered 2 exits: [*Mat] / [*Min]) -9/Mines (discovered 2 exits: [*Mat] / *Exi) -9/Exiles -8/Mines (discovered 2 exits: [*Mat x2]) -8/Materials -8/Storage -8/Recycling -6/Factory -5/Factory -4/Factory (discovered 3 exits: *Upp x2 / Arm) -4/Upper Caves -4/Upper Caves -4/Zhirov -3/Proximity Caves -3/Research -2/Research History --------- Turn | Location | Event 28 | -11/Scrapyard | Discovered new exit (range 15) 97 | -11/Scrapyard | Entered Materials 274 | -10/Materials | Discovered new exit (range 6) 312 | -10/Materials | Build established: Mutant 392 | -10/Materials | Discovered new exit (range 14) 416 | -10/Materials | Entered Mines 565 | -10/Mines | Learned location of Mines (-8) 820 | -10/Mines | Discovered new exit (range 7) 832 | -10/Mines | Entered Materials 832 | -9/Materials | Evolved 2 slots: Utility x2 1285 | -9/Materials | Discovered new exit (range 16) 1613 | -9/Materials | Discovered new exit (range 14) 1734 | -9/Materials | Entered Mines 1763 | -9/Mines | Discovered new exit (range 14) 1770 | -9/Mines | Build established: Scavenger-Mutant 1775 | -9/Mines | Learned location of Storage (-8) 1890 | -9/Mines | Assembled infested the area 1957 | -9/Mines | Met 8R-AWN 2019 | -9/Mines | Lost 8 parts (2n4u2w) 2255 | -9/Mines | Assisted by bots powering up and referring to "LRC-V3" 2554 | -9/Mines | Discovered new exit (range 5) 2561 | -9/Mines | Entered Exiles 2561 | -9/Exiles | Accompanied by 3 allies 2605 | -9/Exiles | Welcomed by 8R-AWN 2637 | -9/Exiles | Met EX-HEX 2704 | -9/Exiles | Met EX-BIN 2852 | -9/Exiles | Aligned with FarCom system 2854 | -9/Exiles | Given EX-Vault access code 2900 | -9/Exiles | Opened EX-Vault 2919 | -9/Exiles | Found Prototype Device 2919 | -9/Exiles | Identified Cloak of Protection 2924 | -9/Exiles | Found Prototype Special Weapon 2924 | -9/Exiles | Identified Field Lobotomy Kit 2963 | -9/Exiles | Warned to stay clear of 0b10 Research branches 3051 | -9/Exiles | Met EX-DEC 3088 | -9/Exiles | Visited The Gauntlet 3231 | -9/Exiles | Learned location of Zion (-6) 3335 | -9/Exiles | Discovered new exit (range 11) 3354 | -9/Exiles | Left Exiles lab with Cloak of Protection 3354 | -9/Exiles | Entered Mines 3354 | -8/Mines | Accompanied by 3 allies 3437 | -8/Mines | Discovered new exit (range 5) 3512 | -8/Mines | Discovered new exit (range 10) 3915 | -8/Mines | Core integrity fell below 50% 4107 | -8/Mines | Entered Materials 4107 | -8/Materials | Evolved 2 slots: Power x1, Utility x1 4107 | -8/Materials | Discovered new exit (range 9) 4943 | -8/Materials | Entered Storage 5501 | -8/Storage | Repaired Lgt. Armor Plating 5737 | -8/Storage | Discovered new exit (range 4) 5745 | -8/Storage | Entered Recycling 5795 | -8/Recycling | Spotter reported a threat 5827 | -8/Recycling | Spotter reported a threat 5850 | -8/Recycling | Spotter reported a threat 5851 | -8/Recycling | Spotter reported a threat 5880 | -8/Recycling | Spotter reported a threat 5903 | -8/Recycling | Spotter reported a threat 5911 | -8/Recycling | Spotter reported a threat 5918 | -8/Recycling | Spotter reported a threat 5964 | -8/Recycling | Spotter reported a threat 5971 | -8/Recycling | Spotter reported a threat 5977 | -8/Recycling | Spotter reported a threat 5978 | -8/Recycling | Spotter reported a threat 6000 | -8/Recycling | Spotter reported a threat 6023 | -8/Recycling | Spotter reported a threat 6030 | -8/Recycling | Spotter reported a threat 6043 | -8/Recycling | Spotter reported a threat 6071 | -8/Recycling | Spotter reported a threat 6098 | -8/Recycling | Spotter reported a threat 6129 | -8/Recycling | Spotter reported a threat 6167 | -8/Recycling | Spotter reported a threat 6195 | -8/Recycling | Build established: Commander-Mutant 6218 | -8/Recycling | Spotter reported a threat 6218 | -8/Recycling | Spotter reported a threat 6233 | -8/Recycling | Spotter reported a threat 6256 | -8/Recycling | Spotter reported a threat 6263 | -8/Recycling | Discovered new exit (range 16) 6274 | -8/Recycling | Spotter reported a threat 6294 | -8/Recycling | Spotter reported a threat 6345 | -8/Recycling | Spotter reported a threat 6355 | -8/Recycling | Spotter reported a threat 6364 | -8/Recycling | Spotter reported a threat 6396 | -8/Recycling | Spotter reported a threat 6398 | -8/Recycling | Spotter reported a threat 6451 | -8/Recycling | Spotter reported a threat 6460 | -8/Recycling | Spotter reported a threat 6470 | -8/Recycling | Spotter reported a threat 6510 | -8/Recycling | Spotter reported a threat 6523 | -8/Recycling | Spotter reported a threat 6525 | -8/Recycling | Spotter reported a threat 6556 | -8/Recycling | Build established: Scavenger-Mutant 6576 | -8/Recycling | Spotter reported a threat 6578 | -8/Recycling | Spotter reported a threat 6580 | -8/Recycling | Spotter reported a threat 6629 | -8/Recycling | Spotter reported a threat 6632 | -8/Recycling | Entered Factory 6632 | -6/Factory | Accompanied by 6 allies 6632 | -6/Factory | Evolved 4 slots: Propulsion x4 6982 | -6/Factory | Search patrols dispatched 7332 | -6/Factory | Search patrols dispatched 7521 | -6/Factory | Discovered new exit (range 15) 7582 | -6/Factory | Garrison activated, responded to threat 7586 | -6/Factory | Crushed by falling debris 7619 | -6/Factory | Core integrity fell below 50% 7640 | -6/Factory | Core integrity fell below 20% 7646 | -6/Factory | Entered another Factory area 7646 | -5/Factory | Evolved 2 slots: Propulsion x1, Utility x1 7667 | -5/Factory | Lost 17 parts (2p9n4u2w) 7948 | -5/Factory | Fabricated Enh. Nova Cannon (x1) 7957 | -5/Factory | Build established: Hacker-Mutant 8392 | -5/Factory | Discovered new exit (range 5) 8429 | -5/Factory | Identified exit to DSF 8564 | -5/Factory | Entered another Factory area 8564 | -4/Factory | Evolved 2 slots: Utility x2 8932 | -4/Factory | Identified exit to Upper Caves 8932 | -4/Factory | Identified exit to Armory 9241 | -4/Factory | Entered Upper Caves 9244 | -4/Upper Caves | Learned location of Testing (-3) 9272 | -4/Upper Caves | Attracted the attention of an 0b10 checkpoint 9326 | -4/Upper Caves | Lost 9 parts (1p5n2u1w) 9450 | -4/Upper Caves | Discovered new exit (range 12) 9563 | -4/Upper Caves | Entered another Upper Caves area 9565 | -4/Upper Caves | Attracted the attention of an 0b10 checkpoint 9573 | -4/Upper Caves | Learned Research terminal intel 9597 | -4/Upper Caves | Encountered a Warlord checkpoint 9606 | -4/Upper Caves | Spotted B-86 Titan 9607 | -4/Upper Caves | Learned Research terminal intel 9744 | -4/Upper Caves | Lost 4 parts (3n1u) 9770 | -4/Upper Caves | Discovered new exit (range 6) 9773 | -4/Upper Caves | Entered Zhirov 9773 | -4/Zhirov | Discovered new exit (range 3) 9874 | -4/Zhirov | Met Zhirov 9883 | -4/Zhirov | Learned location of Quarantine (-2) 9883 | -4/Zhirov | Learned location of Command (-1) 9894 | -4/Zhirov | Zhirov requested help retrieving the SGEMP Prototype 10065 | -4/Zhirov | Found Alien Artifact 10065 | -4/Zhirov | Identified Integrated Dissipator 10065 | -4/Zhirov | Installed Integrated Dissipator, increased core heat dissipation (+20) 10089 | -4/Zhirov | Found Alien Artifact 10089 | -4/Zhirov | Identified Transdimensional Reconstructor 10089 | -4/Zhirov | Warped through subspace 10206 | -4/Zhirov | Entered Proximity Caves 10301 | -3/Proximity Caves | Attracted the attention of an 0b10 base 10318 | -3/Proximity Caves | Core integrity fell below 50% 10321 | -3/Proximity Caves | Spotted B-86 Titan 10371 | -3/Proximity Caves | Discovered new exit (range 6) 10373 | -3/Proximity Caves | Entered Research 10373 | -3/Research | Evolved 2 slots: Propulsion x1, Utility x1 10374 | -3/Research | Loaded intel: 20 terminal locations 10402 | -3/Research | Build established: Hacker-Sprinter 10406 | -3/Research | Repaired Antimatter Reactor 10459 | -3/Research | Spotted B-86 Titan 10521 | -3/Research | Lost 3 parts (1n1u1w) 10534 | -3/Research | Discovered new exit (range 6) 10543 | -3/Research | Entered another Research area 10543 | -2/Research | Evolved 2 slots: Power x1, Utility x1 10544 | -2/Research | Loaded intel: 23 terminal locations 10870 | -2/Research | Spotted B-90 Cyclops 10937 | -2/Research | Spotted B-90 Cyclops 11028 | -2/Research | Core integrity fell below 50% 11032 | -2/Research | Core integrity fell below 20% 11037 | -2/Research | Destroyed by H-88 Terminator with Heavy Machine Gun Last Messages --------------- 11021_ Penetrated by Slug. 11021_ Imp. Core Shielding destroyed. 11022_ ALERT: Hostiles spotted, dispatching reinforcements to Terminal R011. 11023_ Slug penetrates H-88 Terminator. 11023_ Slug penetrates Fabricator. 11025_ Cld. Q-thruster destroyed. 11026_ Hacking Suite destroyed. 11026_ Imp. Core Shielding destroyed. 11026_ Adv. System Shield severed. 11026_ Penetrated by Slug. 11027_ Hacking Suite severed. 11027_ Slug penetrates G-73 Enforcer. 11028_ Penetrated by Slug. 11028_ Slug penetrates Wall. 11029_ G-73 Enforcer suffers critical hit (Burn). 11029_ Machine Analyzer severed. 11031_ U-05 Engineer destroyed. 11037_ Penetrated by Slug. 11037_ Slug penetrates C-57 Dissector. Map ----- +----------------------------------------------------+ | ?????????# ## # #??????????= # # | | ?????????# ## ?# #????????? ? ######## | | ?????????# ## ?# ######+##? ?? ######## | | ########?# ######??# ######+# | | ?# #???????# / | | # #???????# # """" | | # ######### # """" | | + """ # """" | | ] # """ # | | # """ / | | ?# # | | ?# ####+##### g######## | | ########## # # g g#??????# | | # # # #u k h""" ! #??????# " | | # + + !! # b """gg|#??????# = | | # """ # # ! ] # """gp #??????######## | | # """ # # ! #u Y # """T"""??? | | # """ ! + ########## h g/ ?? | | # """ ######????????# g # ?? | | # """ #?????????????# s""" # ?? | | # #?????????????# """ gg#? ??? | | # #?????????????+ """ #?? ???? | | ##########?????????????# sss #???#######???? | | ???????????????????????# cc s #?????????????? | | ???????????????????????+ c #?????????????? | | ???????????????????????##@##### #?????????????? | | ????????????????????????# #???# #?????????????? | | ????????????????????????#;#???# #?????????????? | | ???????????????????????? ???+ #?????????????? | | ???????????????????????? ???# #?????????????? | | ???????????????????????? ???# w?????????????? | | ???????????????????????"""""??# #?????????????? | | ???????????????????????"""""??# #?????????????? | | ???????????????????????"""""??# #?????????????? | | ??????????????????????? ??? #?????????????? | | ??????????????????????????????? #?????????????? | | ??????????????????????????????? #?????????????? | | ??????????????????????????????? ??????????????? | | ?????????????????????????????????????????????????? | | ?????????????????????????????????????????????????? | | ?????????????????????????????????????????????????? | | ?????????????????????????????????????????????????? | | ?????????????????????????????????????????????????? | | ?????????????????????????????????????????????????? | | ?????????????????????????????????????????????????? | | ?????????????????????????????????????????????????? | | ?????????????????????????????????????????????????? | | ?????????????????????????????????????????????????? | | ?????????????????????????????????????????????????? | | ?????????????????????????????????????????????????? | +----------------------------------------------------+ Best States ------------- Heat Dissipation 69 Energy Generation 34 Energy Capacity 825 Matter Stores 300 Matter Capacity 300 Sight Range 16 Terrain Scan Range 16 Terrain Scan Density 10 ECM Strength 2 Jamming Range 16 Cloak Strength 5 Additional Mass Support 9 Armor Coverage 375 Resistance: EX 25 Resistance: EM 25 Core Shielding 30 Power Shielding 90 Weapon Shielding 66 Evasion (%) 75 Targeting Accuracy 12 Melee Accuracy 8 Launcher Accuracy 40 Recoil Reduction 2 Offensive Hacking 40 Defensive Hacking 14 Item Schematics ----------------- Enh. Nova Cannon | -5/Factory | Scanalyzed Assault Drone Bay | -4/Zhirov | Free Exp. Heat Sink | -4/Zhirov | Free Exp. Optical Array | -4/Zhirov | Free Imp. Arc Thrower | -4/Zhirov | Free Robot Schematics ------------------ None Fabricated ------------ Enh. Nova Cannon | x1 | -5/Factory | Preloaded Alien Tech Used ----------------- Integrated Dissipator Transdimensional Reconstructor Achievements -------------- Dodgeball, But With Guns Explorer Prolific Hacker Challenges ------------ None Game ------ Seed BarrageThunderMace Manual? 0 Play Time 02:09:36 Cumulative 69.5 hours Start 2022.05.16 @ 10:15:36 End 2022.05.16 @ 23:29:25 Sessions 3 Manual Loads 0 Difficulty Rogue Special Mode None Game No. 76 Rogue 76 Adventurer 0 Explorer 0 Win Type - Total 0 Types 0/0/0/0/0/0/0/0/0 Lore% 38 Gallery% 48 Achievement% 37 Wizard Run 0 Options --------- ASCII 0 Keyboard 0 Movement Mouse Keybinds 0 Fullscreen 1 Font 18/SmallcapsGlow Map View 76x50 Tactical HUD 1 Map Filters NONE Filters NONE Steam 1 RUN: 2bdedb3f-a328-476b-9155-a7b6b5193f5e